Workbook

Sheet Прейскурант
A1: 1 | B1: 277171600 | C1: Дефектоскопы ультразвуковые | D1: за 1 пьезоэлектронный преобразователь | E1: 5136.86 | G1: Иванов | H1: 1) Синтезатор сигналов СС306 № 025-04-11; 2) Стандартные образцы из комплекта КОУ-2 СО-2 № 211 и СО-3 № 4378
A2: 2 | B2: 280262201 | C2: Весы лабораторные электронные | D2: с НПВ до 60 кг Высокий КТ | E2: 1406.36 | G2: Петров | H2: Гири образцовые миллиграммовые 2-го разряда МГО-2-1110-1 № 83, гири образцовые 2-го разряда ГО-1-1110 № 49, гири образцовые 2-го разряда ГО1-кг № 152, набор гирь 3 разряда КГО-3-30 № 430.
A3: 3 | B3: 280262201 | C3: Расходомеры ультразвуковые (многоканальные) | D3: УРСВ, Взлет МР | E3: 4024 | G3: сидоров | H3: ВПУ-Энерго, №0400.15.02
A4: 4 | B4: 292113500 | C4: Спирометры | D4: Спиро С-100, CHEST мод. HI-101, HI-105, HI-801, PC-10, custo vit m/R, custo spiro mobile | E4: 3840 | G4: Глухов | H4: ЭСПИРО №19043
A5: 5 | B5: 300125200 | C5: Мановакуумметры грузопоршневые МВП-2,5 2 разряда | D5: МВП-2,5 | E5: 4626 | G5: Попов | H5: Манометр грузопоршневой МП-2500, № 0191, 3.1.ZБГ.0051.2015, 1 разряд.Задатчик избыточного давления Воздух-2,5 № 704, 3.1.ZБГ.0056.2015, 1 разряд
A6: 6 | B6: 330161030 | C6: Частотомеры электронно-счетные | D6: Ч3-34, Ч3-34А, Ч3-54 | E6: 4684 | G6: Горбачев | H6: Стандарт частоты FS725 № 65761, 3.1.ZБГ.0151.2015, ПГ [±(5·10^-10 за 1 год)]; Компаратор частотный ЧК7-1012 № 101001 ПГ [±(1·10^-12) за 1 сек.]; Частотомер универсальный CNT-91 № 247778, ПГ ОГ; Генератор сигналов низкочастотный прецизионный Г3-122 № 418, ПГ ОГ; Генератор сигналов ВЧ Giga-tronics 2540B № 1147001, ПГ ОГ; Вольтметр переменного тока В3-71/1 № 033511, ПГ 1,5 %; Осциллограф цифровой запоминающий WJ352A № LCRY0102J20241, 3.1.ZБГ.0209.2015; Генератор импульсов Г5-60 № 41108; Генератор сигналов произвольной формы WW2571A № 214211
A7: 7 | B7: 330167400 | C7: Секундомеры двухстрелочные 60-секундные | D7: СДСпр-4-2 | E7: 276 | G7: Зубов | H7: УПМС-1 № 0005
A8: 8 | B8: 330167400 | C8: Секундомеры механические | D8: СОПпр, СОСпр | E8: 276 | G8: Голованов | H8: УПМС-1 № 0005

Sheet Хронометражная карта
L1: Утверждаю | P1: 565
L2: Директор
P3: 200 | Q3: минимальная сумма для перерасчета
D5: Хронометражная карта №
A6: Вводится с | B6: 1 | C6: января 2018 г. | P6: 456.61 | Q6: Стоимость 1 ГЗ нормочаса специалиста ФБУ «Астраханский ЦСМ»
A7: Поверяемое СИ: | C7: Весы лабораторные электронные с НПВ до 60 кг Высокий КТ | P7: 565 | Q7: Стоимость 1 нормочаса специалиста ФБУ «Астраханский ЦСМ»
A8: Код СИ | C8: 280262201
A9: Поверитель: | C9: Петров
A11: Применяемое поверочное оборудование | B11: Поверочная операция | D11: Ручная (р) или автоматизи-рованная | E11: Результаты хронометражных наблюдений (мин.) | J11: Суммар-ный результат наблюде-ний | K11: Коэффициент устойчивости Ку | M11: Сумма учтенных результатов (час) | N11: Количество учтенных результатов | O11: Средняя продолжи-тельность операции (час)
K12: норма-тивный | L12: факти-ческий
A13: 1 | B13: 2 | D13: 3 | E13: 4 | J13: 5 | K13: 6 | L13: 7 | M13: 8 | N13: 9 | O13: 10
A14: Гири образцовые миллиграммовые 2-го разряда МГО-2-1110-1 № 83, гири образцовые 2-го разряда ГО-1-1110 № 49, гири образцовые 2-го разряда ГО1-кг № 152, набор гирь 3 разряда КГО-3-30 № 430. | B14: 1. | C14: Внешний осмотр | D14: р | E14: =$J14*19% -> 9.5 | F14: =$J14*20% -> 10 | G14: =$J14*21% -> 10.5 | H14: =$J14*19% -> 9.5 | I14: =$J14*21% -> 10.5 | J14: =M14*60 -> 50 | K14: 1.3 | L14: =MAXA(E14,F14,G14,H14,I14)/MIN(E14,F14,G14,H14,I14) -> 1.105263158 | M14: =O14*N14 -> 0.8333333333 | N14: 5 | O14: =IF(P19<P3,1/60*0.1,1/60*10) -> 0.1666666667
B15: 2. | C15: Опробование | D15: р | E15: =$J15*19% -> 7.094028319 | F15: =$J15*20% -> 7.46739823 | G15: =$J15*21% -> 7.840768142 | H15: =$J15*19% -> 7.094028319 | I15: =$J15*21% -> 7.840768142 | J15: =M15*60 -> 37.33699115 | K15: 1.3 | L15: =MAXA(E15,F15,G15,H15,I15)/MIN(E15,F15,G15,H15,I15) -> 1.105263158 | M15: =O15*N15 -> 0.6222831858 | N15: 5 | O15: =5%*O19 -> 0.1244566372
B16: 3. | C16: Определение метрологических характеристик | D16: р | E16: =$J16*19% -> 106.2865381 | F16: =$J16*20% -> 111.8805664 | G16: =$J16*21% -> 117.4745947 | H16: =$J16*19% -> 106.2865381 | I16: =$J16*21% -> 117.4745947 | J16: =M16*60 -> 559.4028319 | K16: 1.3 | L16: =MAXA(E16,F16,G16,H16,I16)/MIN(E16,F16,G16,H16,I16) -> 1.105263158 | M16: =O16*N16 -> 9.323380531 | N16: 5 | O16: =O19-O14-O15-O17-O18 -> 1.864676106
B17: 4. | C17: Оформление результатов поверки | D17: р | E17: =$J17*19% -> 9.5 | F17: =$J17*20% -> 10 | G17: =$J17*21% -> 10.5 | H17: =$J17*19% -> 9.5 | I17: =$J17*21% -> 10.5 | J17: =M17*60 -> 50 | K17: 1.3 | L17: =MAXA(E17,F17,G17,H17,I17)/MIN(E17,F17,G17,H17,I17) -> 1.105263158 | M17: =O17*N17 -> 0.8333333333 | N17: 5 | O17: =IF(P19<P3,1/60*1,1/60*10) -> 0.1666666667
B18: 5. | C18: Учет марок-наклеек (метрконтроль) | D18: р | E18: =$J18*19% -> 9.5 | F18: =$J18*20% -> 10 | G18: =$J18*21% -> 10.5 | H18: =$J18*19% -> 9.5 | I18: =$J18*21% -> 10.5 | J18: =M18*60 -> 50 | K18: 1.3 | L18: =MAXA(E18,F18,G18,H18,I18)/MIN(E18,F18,G18,H18,I18) -> 1.105263158 | M18: =O18*N18 -> 0.8333333333 | N18: 5 | O18: =IF(P19<P3,1/60*1,1/60*10) -> 0.1666666667
K19: ИТОГО | O19: =P19/P1 -> 2.489132743 | P19: 1406.36
C23: Главный метролог
C25: Хронометраж проведен
C27: Расчеты хронометража
C28: проверил
